[Event "Titled Tuesday Blitz August 3 2021"]
[White "Trent, Lawrence"]
[Black "Sanal, Vahap"]
[WhiteFideId "408638"]
[BlackFideId "6300545"]
[WhiteElo "2474"]
[BlackElo "2495"]
[Result "0-1"]
[Round "08"]
[TimeControl "180+1"]
[Date "2021.08.03"]
[WhiteClock "0:00:02"]
[BlackClock "0:00:54"]

1. e4 {[%clk 0:03:00]}  e5 {[%clk 0:02:59]} 2. Nf3 {[%clk 0:03:00]}  Nc6 {[%clk 0:03:00]} 3. Bc4 {[%clk 0:02:59]}  Bc5 {[%clk 0:03:00]} 4. c3 {[%clk 0:02:54]}  Nf6 {[%clk 0:02:59]} 5. d4 {[%clk 0:02:53]}  exd4 {[%clk 0:02:59]} 6. e5 {[%clk 0:02:53]}  d5 {[%clk 0:02:59]} 7. Bb5 {[%clk 0:02:53]}  Ne4 {[%clk 0:02:59]} 8. cxd4 {[%clk 0:02:54]}  Bb6 {[%clk 0:02:59]} 9. Be3 {[%clk 0:02:53]}  Bg4 {[%clk 0:02:59]} 10. Nc3 {[%clk 0:02:44]}  O-O {[%clk 0:02:50]} 11. h3 {[%clk 0:02:42]}  Bh5 {[%clk 0:02:50]} 12. Rc1 {[%clk 0:02:39]}  Ne7 {[%clk 0:02:41]} 13. g4 {[%clk 0:02:32]}  Bg6 {[%clk 0:02:41]} 14. Ne2 {[%clk 0:02:32]}  c6 {[%clk 0:02:37]} 15. Ba4 {[%clk 0:02:30]}  f6 {[%clk 0:02:31]} 16. Nf4 {[%clk 0:02:27]}  Qd7 {[%clk 0:02:28]} 17. Bc2 {[%clk 0:02:05]}  Rae8 {[%clk 0:02:10]} 18. e6 {[%clk 0:01:47]}  Qd6 {[%clk 0:02:08]} 19. h4 {[%clk 0:01:44]}  Rc8 {[%clk 0:01:52]} 20. h5 {[%clk 0:01:42]}  Be8 {[%clk 0:01:52]} 21. Nh4 {[%clk 0:01:38]}  Qb4+ {[%clk 0:01:45]} 22. Kf1 {[%clk 0:01:35]}  g5 {[%clk 0:01:42]} 23. hxg6 {[%clk 0:01:25]}  hxg6 {[%clk 0:01:42]} 24. Kg2 {[%clk 0:00:47]}  Kg7 {[%clk 0:01:38]} 25. f3 {[%clk 0:00:40]}  Nd6 {[%clk 0:01:36]} 26. a3 {[%clk 0:00:32]}  Qxb2 {[%clk 0:01:35]} 27. Rb1 {[%clk 0:00:32]}  Qxa3 {[%clk 0:01:34]} 28. Bc1 {[%clk 0:00:31]}  Qa2 {[%clk 0:01:25]} 29. Qd3 {[%clk 0:00:21]}  f5 {[%clk 0:01:19]} 30. Rb2 {[%clk 0:00:09]}  Qc4 {[%clk 0:01:19]} 31. Qd2 {[%clk 0:00:05]}  Qxd4 {[%clk 0:01:17]} 32. Nh5+ {[%clk 0:00:05]}  gxh5 {[%clk 0:01:14]} 33. Qh6+ {[%clk 0:00:04]}  Kg8 {[%clk 0:01:15]} 34. Qg5+ {[%clk 0:00:04]}  Qg7 {[%clk 0:01:15]} 35. gxh5 {[%clk 0:00:01]}  Bxh5 {[%clk 0:01:07]} 36. Kh2 {[%clk 0:00:01]}  Qxg5 {[%clk 0:01:04]} 37. Bxg5 {[%clk 0:00:02]}  Rce8 {[%clk 0:01:03]} 38. Bb1 {[%clk 0:00:02]}  Ng6 {[%clk 0:01:02]} 39. Rg2 {[%clk 0:00:03]}  Rxe6 {[%clk 0:01:01]} 40. Bh6 {[%clk 0:00:01]}  Kh7 {[%clk 0:00:59]} 41. Bxf8 {[%clk 0:00:01]}  Nxh4 {[%clk 0:00:54]} 42. Kg3 {[%clk 0:00:01]}  Nxg2 {[%clk 0:00:53]} 43. Rxh5+ {[%clk 0:00:01]}  Kg8 {[%clk 0:00:53]} 44. Rg5+ {[%clk 0:00:01]}  Kxf8 {[%clk 0:00:54]} 45. Kxg2 {[%clk 0:00:02]} 0-1


[Site "https://www.chess.com"]

[Event "Titled Tuesday Blitz August 3 2021"]
[White "Tristan, Leonardo"]
[Black "Begunov, Konstantin"]
[WhiteFideId "113816"]
[BlackFideId "4118510"]
[WhiteElo "2404"]
[BlackElo "2262"]
[Result "0-1"]
[Round "08"]
[TimeControl "180+1"]
[Date "2021.08.03"]
[WhiteClock "0:00:43"]
[BlackClock "0:00:07"]

1. d4 {[%clk 0:03:00]}  d5 {[%clk 0:02:59]} 2. Nf3 {[%clk 0:03:00]}  c6 {[%clk 0:03:00]} 3. Bf4 {[%clk 0:03:00]}  Nf6 {[%clk 0:03:00]} 4. e3 {[%clk 0:03:00]}  Bg4 {[%clk 0:03:00]} 5. c4 {[%clk 0:03:00]}  e6 {[%clk 0:03:00]} 6. Nc3 {[%clk 0:03:01]}  Nbd7 {[%clk 0:03:00]} 7. Qb3 {[%clk 0:03:01]}  Bxf3 {[%clk 0:02:58]} 8. gxf3 {[%clk 0:03:02]}  Qb6 {[%clk 0:02:57]} 9. c5 {[%clk 0:03:02]}  Qxb3 {[%clk 0:02:57]} 10. axb3 {[%clk 0:03:03]}  a6 {[%clk 0:02:56]} 11. b4 {[%clk 0:03:03]}  Rc8 {[%clk 0:02:56]} 12. h3 {[%clk 0:02:44]}  g6 {[%clk 0:02:50]} 13. Ne2 {[%clk 0:02:37]}  Nh5 {[%clk 0:02:37]} 14. Bh2 {[%clk 0:02:37]}  Bg7 {[%clk 0:02:32]} 15. Kd2 {[%clk 0:02:36]}  e5 {[%clk 0:02:31]} 16. h4 {[%clk 0:02:34]}  f5 {[%clk 0:02:22]} 17. Rg1 {[%clk 0:02:27]}  Bf6 {[%clk 0:02:22]} 18. dxe5 {[%clk 0:02:14]}  Bxe5 {[%clk 0:01:53]} 19. Bxe5 {[%clk 0:02:11]}  Nxe5 {[%clk 0:01:54]} 20. Nd4 {[%clk 0:02:12]}  f4 {[%clk 0:01:47]} 21. Bh3 {[%clk 0:02:10]}  Rc7 {[%clk 0:01:45]} 22. e4 {[%clk 0:01:59]}  dxe4 {[%clk 0:01:14]} 23. fxe4 {[%clk 0:01:58]}  Ke7 {[%clk 0:01:13]} 24. Kc3 {[%clk 0:01:56]}  Rd8 {[%clk 0:01:10]} 25. Ne6 {[%clk 0:01:51]}  Rd3+ {[%clk 0:01:07]} 26. Kc2 {[%clk 0:01:51]}  Rcd7 {[%clk 0:00:58]} 27. Ng5 {[%clk 0:01:52]}  Rd2+ {[%clk 0:00:54]} 28. Kc1 {[%clk 0:01:50]}  R7d3 {[%clk 0:00:47]} 29. Bf1 {[%clk 0:01:50]}  Rd4 {[%clk 0:00:44]} 30. Bxa6 {[%clk 0:01:34]}  bxa6 {[%clk 0:00:41]} 31. Rxa6 {[%clk 0:01:34]}  Rxf2 {[%clk 0:00:35]} 32. Ra7+ {[%clk 0:01:34]}  Ke8 {[%clk 0:00:31]} 33. Ne6 {[%clk 0:01:27]}  Rc4+ {[%clk 0:00:20]} 34. Kb1 {[%clk 0:01:25]}  Rxb4 {[%clk 0:00:18]} 35. Rd1 {[%clk 0:01:25]}  Rbxb2+ {[%clk 0:00:15]} 36. Ka1 {[%clk 0:01:25]}  Rfd2 {[%clk 0:00:12]} 37. Rc1 {[%clk 0:01:00]}  Nd3 {[%clk 0:00:11]} 38. Rf1 {[%clk 0:00:52]}  Nb4 {[%clk 0:00:07]} 39. Ng7+ {[%clk 0:00:46]}  Nxg7 {[%clk 0:00:06]} 40. Rxg7 {[%clk 0:00:44]}  Ra2+ {[%clk 0:00:07]} 41. Kb1 {[%clk 0:00:44]}  Rdb2+ {[%clk 0:00:07]} 42. Kc1 {[%clk 0:00:44]}  Nd3+ {[%clk 0:00:07]} 43. Kd1 {[%clk 0:00:43]}  Rd2# {[%clk 0:00:07]} 0-1


[Site "https://www.chess.com"]

[Event "Titled Tuesday Blitz August 3 2021"]
[White "Ulko, Jaroslav"]
[Black "Zhuravlev, Alexey"]
[WhiteFideId "4116658"]
[BlackFideId "4164199"]
[WhiteElo "2304"]
[BlackElo "2466"]
[Result "1-0"]
[Round "08"]
[TimeControl "180+1"]
[Date "2021.08.03"]
[WhiteClock "0:00:19"]
[BlackClock "0:00:02"]

1. d4 {[%clk 0:03:00]}  Nf6 {[%clk 0:02:58]} 2. Nf3 {[%clk 0:03:01]}  g6 {[%clk 0:02:59]} 3. c3 {[%clk 0:02:59]}  Bg7 {[%clk 0:02:59]} 4. Bg5 {[%clk 0:03:00]}  O-O {[%clk 0:02:58]} 5. Nbd2 {[%clk 0:03:00]}  d5 {[%clk 0:02:59]} 6. e3 {[%clk 0:03:00]}  b6 {[%clk 0:02:59]} 7. Be2 {[%clk 0:02:59]}  c5 {[%clk 0:03:00]} 8. O-O {[%clk 0:02:59]}  Nc6 {[%clk 0:03:00]} 9. a4 {[%clk 0:02:59]}  Bb7 {[%clk 0:02:58]} 10. Qb3 {[%clk 0:02:56]}  Qc8 {[%clk 0:02:49]} 11. h3 {[%clk 0:02:50]}  Re8 {[%clk 0:02:41]} 12. Bf4 {[%clk 0:02:48]}  Nd7 {[%clk 0:02:39]} 13. Bb5 {[%clk 0:02:46]}  a6 {[%clk 0:02:35]} 14. Be2 {[%clk 0:02:32]}  c4 {[%clk 0:02:04]} 15. Qc2 {[%clk 0:02:30]}  e5 {[%clk 0:02:01]} 16. dxe5 {[%clk 0:02:28]}  Ndxe5 {[%clk 0:02:02]} 17. b3 {[%clk 0:02:18]}  b5 {[%clk 0:01:56]} 18. b4 {[%clk 0:02:08]}  Nd7 {[%clk 0:01:05]} 19. a5 {[%clk 0:01:20]}  d4 {[%clk 0:01:04]} 20. Nxc4 {[%clk 0:01:09]}  bxc4 {[%clk 0:01:00]} 21. exd4 {[%clk 0:01:08]}  Ne7 {[%clk 0:00:56]} 22. Rfe1 {[%clk 0:01:05]}  Nd5 {[%clk 0:00:55]} 23. Bd2 {[%clk 0:01:05]}  N7f6 {[%clk 0:00:54]} 24. Ne5 {[%clk 0:01:05]}  Qf5 {[%clk 0:00:43]} 25. Qxf5 {[%clk 0:01:03]}  gxf5 {[%clk 0:00:44]} 26. f3 {[%clk 0:00:56]}  Rac8 {[%clk 0:00:38]} 27. Bxc4 {[%clk 0:00:53]}  Re7 {[%clk 0:00:23]} 28. Rac1 {[%clk 0:00:47]}  Rec7 {[%clk 0:00:23]} 29. Bd3 {[%clk 0:00:27]}  Nxc3 {[%clk 0:00:22]} 30. Bxf5 {[%clk 0:00:27]}  Ne2+ {[%clk 0:00:20]} 31. Rxe2 {[%clk 0:00:24]}  Rxc1+ {[%clk 0:00:21]} 32. Bxc1 {[%clk 0:00:24]}  Rxc1+ {[%clk 0:00:21]} 33. Kh2 {[%clk 0:00:25]}  Nd5 {[%clk 0:00:18]} 34. Nd3 {[%clk 0:00:23]}  Rc7 {[%clk 0:00:14]} 35. Re8+ {[%clk 0:00:22]}  Bf8 {[%clk 0:00:15]} 36. Nc5 {[%clk 0:00:23]}  Kg7 {[%clk 0:00:14]} 37. Be4 {[%clk 0:00:22]}  Bxc5 {[%clk 0:00:12]} 38. dxc5 {[%clk 0:00:21]}  Nxb4 {[%clk 0:00:12]} 39. Rb8 {[%clk 0:00:15]}  Bxe4 {[%clk 0:00:12]} 40. Rxb4 {[%clk 0:00:15]}  Bc6 {[%clk 0:00:11]} 41. Rb6 {[%clk 0:00:15]}  Bb5 {[%clk 0:00:12]} 42. Rd6 {[%clk 0:00:13]}  Rxc5 {[%clk 0:00:11]} 43. Rd4 {[%clk 0:00:13]}  Rc2 {[%clk 0:00:11]} 44. Rg4+ {[%clk 0:00:12]}  Kf8 {[%clk 0:00:11]} 45. Rb4 {[%clk 0:00:12]}  Bf1 {[%clk 0:00:10]} 46. Rh4 {[%clk 0:00:13]}  Rxg2+ {[%clk 0:00:09]} 47. Kh1 {[%clk 0:00:14]}  Rg5 {[%clk 0:00:08]} 48. Rxh7 {[%clk 0:00:14]}  Rxa5 {[%clk 0:00:08]} 49. Rh8+ {[%clk 0:00:15]}  Kg7 {[%clk 0:00:09]} 50. Rb8 {[%clk 0:00:16]}  Bxh3 {[%clk 0:00:08]} 51. Kg1 {[%clk 0:00:16]}  Be6 {[%clk 0:00:08]} 52. Kf2 {[%clk 0:00:17]}  Ra3 {[%clk 0:00:04]} 53. Kg3 {[%clk 0:00:18]}  Bd5 {[%clk 0:00:03]} 54. Kf4 {[%clk 0:00:18]}  Bxf3 {[%clk 0:00:02]} 55. Ke5 {[%clk 0:00:19]} 1-0


[Site "https://www.chess.com"]

[Event "Titled Tuesday Blitz August 3 2021"]
[White "Urazayev, Arystanbek"]
[Black "Rustemov, Alexander"]
[WhiteFideId "13709810"]
[BlackFideId "4119002"]
[WhiteElo "2321"]
[BlackElo "2670"]
[Result "1-0"]
[Round "08"]
[TimeControl "180+1"]
[Date "2021.08.03"]
[WhiteClock "0:00:48"]
[BlackClock "0:00:02"]

1. d4 {[%clk 0:03:00]}  d5 {[%clk 0:02:59]} 2. c4 {[%clk 0:03:01]}  e6 {[%clk 0:02:59]} 3. Nc3 {[%clk 0:03:00]}  Be7 {[%clk 0:02:59]} 4. Nf3 {[%clk 0:02:59]}  Nf6 {[%clk 0:02:59]} 5. Bf4 {[%clk 0:03:00]}  O-O {[%clk 0:02:59]} 6. a3 {[%clk 0:03:01]}  Nbd7 {[%clk 0:02:57]} 7. Nb5 {[%clk 0:03:01]}  Ne8 {[%clk 0:02:56]} 8. e3 {[%clk 0:03:00]}  a6 {[%clk 0:02:55]} 9. Nc3 {[%clk 0:03:01]}  dxc4 {[%clk 0:02:56]} 10. Bxc4 {[%clk 0:03:02]}  b5 {[%clk 0:02:56]} 11. Be2 {[%clk 0:03:02]}  Bb7 {[%clk 0:02:49]} 12. O-O {[%clk 0:03:02]}  c5 {[%clk 0:02:46]} 13. d5 {[%clk 0:03:02]}  exd5 {[%clk 0:02:35]} 14. Nxd5 {[%clk 0:03:03]}  Bxd5 {[%clk 0:02:15]} 15. Qxd5 {[%clk 0:03:02]}  Nb6 {[%clk 0:02:15]} 16. Qxd8 {[%clk 0:03:00]}  Rxd8 {[%clk 0:02:12]} 17. Rfd1 {[%clk 0:03:00]}  Rxd1+ {[%clk 0:02:01]} 18. Rxd1 {[%clk 0:03:00]}  c4 {[%clk 0:02:01]} 19. Ne5 {[%clk 0:02:36]}  Bf6 {[%clk 0:01:38]} 20. Rd2 {[%clk 0:02:35]}  Na4 {[%clk 0:01:24]} 21. Bd1 {[%clk 0:02:24]}  Bxe5 {[%clk 0:01:12]} 22. Bxe5 {[%clk 0:02:23]}  Nc5 {[%clk 0:01:04]} 23. Bc2 {[%clk 0:02:16]}  f6 {[%clk 0:00:59]} 24. Bd4 {[%clk 0:02:12]}  Ne6 {[%clk 0:00:56]} 25. Bc3 {[%clk 0:02:12]}  N8c7 {[%clk 0:00:48]} 26. g4 {[%clk 0:02:02]}  Rd8 {[%clk 0:00:47]} 27. Rxd8+ {[%clk 0:02:01]}  Nxd8 {[%clk 0:00:48]} 28. Be4 {[%clk 0:01:43]}  Nde6 {[%clk 0:00:42]} 29. Ba5 {[%clk 0:01:32]}  Kf7 {[%clk 0:00:39]} 30. Kf1 {[%clk 0:01:28]}  g6 {[%clk 0:00:30]} 31. Ke2 {[%clk 0:01:25]}  Ke7 {[%clk 0:00:29]} 32. f4 {[%clk 0:01:22]}  Nc5 {[%clk 0:00:24]} 33. Bc2 {[%clk 0:01:19]}  Nd5 {[%clk 0:00:23]} 34. h4 {[%clk 0:01:13]}  Ke6 {[%clk 0:00:22]} 35. f5+ {[%clk 0:01:12]}  Kf7 {[%clk 0:00:22]} 36. fxg6+ {[%clk 0:01:12]}  hxg6 {[%clk 0:00:23]} 37. h5 {[%clk 0:01:08]}  gxh5 {[%clk 0:00:21]} 38. gxh5 {[%clk 0:01:08]}  Kg7 {[%clk 0:00:21]} 39. Bd2 {[%clk 0:01:09]}  Nd7 {[%clk 0:00:13]} 40. h6+ {[%clk 0:01:06]}  Kf7 {[%clk 0:00:12]} 41. Bf5 {[%clk 0:01:02]}  Ne5 {[%clk 0:00:11]} 42. Bc8 {[%clk 0:01:02]}  c3 {[%clk 0:00:02]} 43. bxc3 {[%clk 0:01:02]}  a5 {[%clk 0:00:03]} 44. Ba6 {[%clk 0:00:56]}  b4 {[%clk 0:00:02]} 45. cxb4 {[%clk 0:00:55]}  axb4 {[%clk 0:00:03]} 46. axb4 {[%clk 0:00:55]}  Kg6 {[%clk 0:00:03]} 47. Bd3+ {[%clk 0:00:53]}  Kf7 {[%clk 0:00:01]} 48. b5 {[%clk 0:00:51]}  Nb6 {[%clk 0:00:01]} 49. Ba5 {[%clk 0:00:50]}  Nbc4 {[%clk 0:00:01]} 50. Bxc4+ {[%clk 0:00:49]}  Nxc4 {[%clk 0:00:02]} 51. Bc3 {[%clk 0:00:49]}  Kg6 {[%clk 0:00:02]} 52. Kd3 {[%clk 0:00:47]}  Nd6 {[%clk 0:00:02]} 53. b6 {[%clk 0:00:47]}  Kxh6 {[%clk 0:00:02]} 54. Bxf6 {[%clk 0:00:47]}  Kg6 {[%clk 0:00:02]} 55. Be5 {[%clk 0:00:46]}  Nb7 {[%clk 0:00:03]} 56. Ke4 {[%clk 0:00:47]}  Kf7 {[%clk 0:00:03]} 57. Kd5 {[%clk 0:00:48]}  Ke7 {[%clk 0:00:03]} 58. Kc6 {[%clk 0:00:48]}  Na5+ {[%clk 0:00:04]} 59. Kc7 {[%clk 0:00:49]}  Ke6 {[%clk 0:00:04]} 60. Bc3 {[%clk 0:00:49]}  Kd5 {[%clk 0:00:02]} 61. Bxa5 {[%clk 0:00:48]} 1-0


[Site "https://www.chess.com"]

[Event "Titled Tuesday Blitz August 3 2021"]
[White "Von Buelow, Georg"]
[Black "Ballester Llagaria, Luis Eduardo"]
[WhiteFideId "4620658"]
[BlackFideId "2297620"]
[WhiteElo "2178"]
[BlackElo "2344"]
[Result "0-1"]
[Round "08"]
[TimeControl "180+1"]
[Date "2021.08.03"]
[WhiteClock "0:00:15"]
[BlackClock "0:00:39"]

1. e4 {[%clk 0:02:58]}  e6 {[%clk 0:02:59]} 2. d4 {[%clk 0:02:56]}  d5 {[%clk 0:03:00]} 3. Nc3 {[%clk 0:02:55]}  Nc6 {[%clk 0:03:00]} 4. Nf3 {[%clk 0:02:53]}  Nf6 {[%clk 0:02:59]} 5. Bg5 {[%clk 0:02:52]}  Be7 {[%clk 0:02:59]} 6. Bxf6 {[%clk 0:02:51]}  Bxf6 {[%clk 0:02:59]} 7. Bb5 {[%clk 0:02:51]}  O-O {[%clk 0:02:58]} 8. Bxc6 {[%clk 0:02:47]}  bxc6 {[%clk 0:02:58]} 9. O-O {[%clk 0:02:47]}  Rb8 {[%clk 0:02:55]} 10. Rb1 {[%clk 0:02:44]}  Ba6 {[%clk 0:02:47]} 11. Re1 {[%clk 0:02:41]}  h6 {[%clk 0:02:29]} 12. exd5 {[%clk 0:02:17]}  cxd5 {[%clk 0:02:28]} 13. Na4 {[%clk 0:02:15]}  Be7 {[%clk 0:02:13]} 14. Ne5 {[%clk 0:02:11]}  Bb5 {[%clk 0:02:11]} 15. Nc5 {[%clk 0:01:51]}  Bxc5 {[%clk 0:02:11]} 16. dxc5 {[%clk 0:01:41]}  Be8 {[%clk 0:01:43]} 17. b4 {[%clk 0:01:00]}  f6 {[%clk 0:01:40]} 18. Nf3 {[%clk 0:00:52]}  e5 {[%clk 0:01:38]} 19. c3 {[%clk 0:00:44]}  Bh5 {[%clk 0:01:29]} 20. Qa4 {[%clk 0:00:35]}  Bxf3 {[%clk 0:01:21]} 21. gxf3 {[%clk 0:00:35]}  Qc8 {[%clk 0:00:52]} 22. Qc6 {[%clk 0:00:30]}  Qb7 {[%clk 0:00:44]} 23. Qe6+ {[%clk 0:00:20]}  Kh8 {[%clk 0:00:44]} 24. Rbd1 {[%clk 0:00:20]}  c6 {[%clk 0:00:41]} 25. a3 {[%clk 0:00:20]}  Rbe8 {[%clk 0:00:39]} 26. Qd6 {[%clk 0:00:20]}  Rd8 {[%clk 0:00:39]} 27. Qe6 {[%clk 0:00:15]}  Rfe8 {[%clk 0:00:39]} 0-1


[Site "https://www.chess.com"]

[Event "Titled Tuesday Blitz August 3 2021"]
[White "Wei, Yi"]
[Black "Quispe Arteaga, Gabriel"]
[WhiteFideId "8603405"]
[BlackFideId "32059809"]
[WhiteElo "2686"]
[BlackElo "2172"]
[Result "1-0"]
[Round "08"]
[TimeControl "180+1"]
[Date "2021.08.03"]
[WhiteClock "0:02:08"]
[BlackClock "0:00:07"]

1. d4 {[%clk 0:03:00]}  Nf6 {[%clk 0:02:50]} 2. c4 {[%clk 0:03:00]}  e6 {[%clk 0:02:43]} 3. g3 {[%clk 0:02:59]}  c5 {[%clk 0:02:41]} 4. d5 {[%clk 0:02:57]}  exd5 {[%clk 0:02:39]} 5. cxd5 {[%clk 0:02:57]}  d6 {[%clk 0:02:38]} 6. Bg2 {[%clk 0:02:58]}  g6 {[%clk 0:02:39]} 7. Nc3 {[%clk 0:02:57]}  Bg7 {[%clk 0:02:39]} 8. Nf3 {[%clk 0:02:57]}  O-O {[%clk 0:02:40]} 9. O-O {[%clk 0:02:58]}  Re8 {[%clk 0:02:40]} 10. Re1 {[%clk 0:02:58]}  a6 {[%clk 0:02:37]} 11. a4 {[%clk 0:02:58]}  Bg4 {[%clk 0:02:37]} 12. Nd2 {[%clk 0:02:57]}  h5 {[%clk 0:02:11]} 13. Nc4 {[%clk 0:02:53]}  Bf8 {[%clk 0:01:35]} 14. h3 {[%clk 0:02:49]}  Bc8 {[%clk 0:01:34]} 15. Bf4 {[%clk 0:02:48]}  Nh7 {[%clk 0:01:26]} 16. e4 {[%clk 0:02:45]}  f6 {[%clk 0:00:48]} 17. a5 {[%clk 0:02:38]}  g5 {[%clk 0:00:29]} 18. Be3 {[%clk 0:02:37]}  g4 {[%clk 0:00:19]} 19. hxg4 {[%clk 0:02:25]}  hxg4 {[%clk 0:00:20]} 20. Bf4 {[%clk 0:02:23]}  Ng5 {[%clk 0:00:20]} 21. Bxg5 {[%clk 0:02:22]}  fxg5 {[%clk 0:00:21]} 22. Ne3 {[%clk 0:02:22]}  Nd7 {[%clk 0:00:19]} 23. Qxg4 {[%clk 0:02:18]}  Ne5 {[%clk 0:00:20]} 24. Qh5 {[%clk 0:02:18]}  Qe7 {[%clk 0:00:18]} 25. Nf5 {[%clk 0:02:17]}  Bxf5 {[%clk 0:00:14]} 26. exf5 {[%clk 0:02:17]}  Qf6 {[%clk 0:00:14]} 27. g4 {[%clk 0:02:10]}  Nf7 {[%clk 0:00:10]} 28. Re6 {[%clk 0:02:09]}  Qh8 {[%clk 0:00:07]} 29. Rg6+ {[%clk 0:02:08]}  Bg7 {[%clk 0:00:07]} 30. f6 {[%clk 0:02:08]} 1-0


[Site "https://www.chess.com"]

[Event "Titled Tuesday Blitz August 3 2021"]
[White "Zubov, Alexander"]
[Black "Yoo, Christopher Woojin"]
[WhiteFideId "14109409"]
[BlackFideId "30909694"]
[WhiteElo "2740"]
[BlackElo "2105"]
[Result "1/2-1/2"]
[Round "08"]
[TimeControl "180+1"]
[Date "2021.08.03"]
[WhiteClock "0:00:10"]
[BlackClock "0:00:02"]

1. d4 {[%clk 0:03:00]}  Nf6 {[%clk 0:02:59]} 2. c4 {[%clk 0:03:00]}  e6 {[%clk 0:02:59]} 3. Nf3 {[%clk 0:03:00]}  d5 {[%clk 0:02:59]} 4. Nc3 {[%clk 0:03:00]}  c6 {[%clk 0:02:59]} 5. e3 {[%clk 0:02:59]}  a6 {[%clk 0:02:58]} 6. b3 {[%clk 0:02:59]}  Bb4 {[%clk 0:02:57]} 7. Bd2 {[%clk 0:02:57]}  O-O {[%clk 0:02:57]} 8. Bd3 {[%clk 0:02:57]}  Nbd7 {[%clk 0:02:57]} 9. O-O {[%clk 0:02:57]}  Qe7 {[%clk 0:02:57]} 10. Qc2 {[%clk 0:02:54]}  e5 {[%clk 0:02:54]} 11. Nxe5 {[%clk 0:02:45]}  Nxe5 {[%clk 0:02:54]} 12. dxe5 {[%clk 0:02:46]}  Qxe5 {[%clk 0:02:55]} 13. cxd5 {[%clk 0:02:24]}  cxd5 {[%clk 0:02:53]} 14. Ne2 {[%clk 0:02:07]}  Bd6 {[%clk 0:02:51]} 15. Ng3 {[%clk 0:01:59]}  Qg5 {[%clk 0:02:50]} 16. Bc3 {[%clk 0:01:47]}  Ng4 {[%clk 0:02:20]} 17. Be2 {[%clk 0:01:21]}  h5 {[%clk 0:02:07]} 18. Bxg4 {[%clk 0:01:17]}  Bxg4 {[%clk 0:02:05]} 19. f4 {[%clk 0:01:18]}  Qe7 {[%clk 0:02:01]} 20. Bd4 {[%clk 0:01:17]}  g6 {[%clk 0:01:19]} 21. h3 {[%clk 0:01:12]}  Bd7 {[%clk 0:01:18]} 22. Qf2 {[%clk 0:01:07]}  Rac8 {[%clk 0:00:59]} 23. Nxh5 {[%clk 0:01:05]}  f6 {[%clk 0:00:47]} 24. Ng3 {[%clk 0:01:01]}  Rc7 {[%clk 0:00:40]} 25. Qf3 {[%clk 0:00:56]}  Qf7 {[%clk 0:00:34]} 26. Rad1 {[%clk 0:00:43]}  Rc2 {[%clk 0:00:28]} 27. e4 {[%clk 0:00:33]}  Bb5 {[%clk 0:00:21]} 28. Rf2 {[%clk 0:00:29]}  Rxf2 {[%clk 0:00:21]} 29. Qxf2 {[%clk 0:00:30]}  dxe4 {[%clk 0:00:19]} 30. Nxe4 {[%clk 0:00:31]}  Be7 {[%clk 0:00:19]} 31. f5 {[%clk 0:00:24]}  g5 {[%clk 0:00:14]} 32. Bc5 {[%clk 0:00:23]}  Bc6 {[%clk 0:00:12]} 33. Bxe7 {[%clk 0:00:22]}  Qxe7 {[%clk 0:00:12]} 34. Ng3 {[%clk 0:00:20]}  Rd8 {[%clk 0:00:11]} 35. Re1 {[%clk 0:00:19]}  Qb4 {[%clk 0:00:08]} 36. Kh2 {[%clk 0:00:16]}  Rd2 {[%clk 0:00:07]} 37. Re2 {[%clk 0:00:16]}  Rxe2 {[%clk 0:00:07]} 38. Qxe2 {[%clk 0:00:16]}  Qd6 {[%clk 0:00:03]} 39. Qh5 {[%clk 0:00:12]}  Qe7 {[%clk 0:00:02]} 40. Qe2 {[%clk 0:00:10]}  Qd6 {[%clk 0:00:02]} 41. Qc4+ {[%clk 0:00:07]}  Kg7 {[%clk 0:00:02]} 42. Qe2 {[%clk 0:00:06]}  Bd5 {[%clk 0:00:02]} 43. Qd3 {[%clk 0:00:05]}  Qe5 {[%clk 0:00:02]} 44. Qe2 {[%clk 0:00:05]}  Qd6 {[%clk 0:00:02]} 45. Qf2 {[%clk 0:00:06]}  Qe5 {[%clk 0:00:02]} 46. Kg1 {[%clk 0:00:06]}  Qd6 {[%clk 0:00:02]} 47. Nf1 {[%clk 0:00:06]}  Qe5 {[%clk 0:00:02]} 48. Ne3 {[%clk 0:00:07]}  Be4 {[%clk 0:00:02]} 49. Nc4 {[%clk 0:00:07]}  Qxf5 {[%clk 0:00:02]} 50. Nd6 {[%clk 0:00:07]}  Qxf2+ {[%clk 0:00:02]} 51. Kxf2 {[%clk 0:00:06]}  Bc6 {[%clk 0:00:03]} 52. g4 {[%clk 0:00:06]}  Kf8 {[%clk 0:00:03]} 53. Kg3 {[%clk 0:00:07]}  Ke7 {[%clk 0:00:03]} 54. Nf5+ {[%clk 0:00:07]}  Ke6 {[%clk 0:00:04]} 55. h4 {[%clk 0:00:08]}  gxh4+ {[%clk 0:00:03]} 56. Nxh4 {[%clk 0:00:09]}  Ke5 {[%clk 0:00:03]} 57. Ng6+ {[%clk 0:00:08]}  Ke4 {[%clk 0:00:04]} 58. Ne7 {[%clk 0:00:09]}  Bd7 {[%clk 0:00:04]} 59. Ng8 {[%clk 0:00:09]}  Ke5 {[%clk 0:00:03]} 60. Nh6 {[%clk 0:00:09]}  Be6 {[%clk 0:00:03]} 61. Kf3 {[%clk 0:00:08]}  a5 {[%clk 0:00:03]} 62. Ke3 {[%clk 0:00:08]}  b5 {[%clk 0:00:03]} 63. Kf3 {[%clk 0:00:08]}  a4 {[%clk 0:00:03]} 64. bxa4 {[%clk 0:00:07]}  bxa4 {[%clk 0:00:04]} 65. a3 {[%clk 0:00:08]}  Kd4 {[%clk 0:00:03]} 66. Kf4 {[%clk 0:00:08]}  Kc4 {[%clk 0:00:03]} 67. Nf5 {[%clk 0:00:09]}  Kc3 {[%clk 0:00:03]} 68. Nd6 {[%clk 0:00:08]}  Kb2 {[%clk 0:00:03]} 69. Ne4 {[%clk 0:00:08]}  Kxa3 {[%clk 0:00:02]} 70. Nc5 {[%clk 0:00:08]}  Bc8 {[%clk 0:00:01]} 71. g5 {[%clk 0:00:08]}  fxg5+ {[%clk 0:00:02]} 72. Kxg5 {[%clk 0:00:09]}  Kb4 {[%clk 0:00:02]} 73. Nxa4 {[%clk 0:00:10]} 1/2-1/2


[Site "https://www.chess.com"]